fUST/lending_fUST_20250615
["ID","MTS","AMOUNT","RATE_DAILY","PERIOD"]
[365881665,1749967845186,-460.0,0.00022739,4]
[365881667,1749967845195,-460.0,0.00022739,2]
[365881669,1749967845204,-1475.14,0.00022739,4]
[365881671,1749967845213,-420.0,0.00022739,4]
[365881674,1749967845224,-3182.62,0.00022739,4]
[365881676,1749967845235,-504.56,0.00022739,4]
[365881677,1749967845246,-423.28597389,0.00022739,4]
[365881680,1749967845256,-1222.44,0.00022739,4]
[365881682,1749967845266,-460.0,0.00022739,4]
[365881684,1749967845275,-263.27855889,0.00022739,4]
[365881686,1749967845284,-522.78,0.00022739,4]
[365881687,1749967845293,-460.0,0.00022739,4]
[365881690,1749967845302,-460.0,0.00022739,4]
[365881692,1749967845311,-460.0,0.00022739,4]
[365881693,1749967845320,-460.0,0.00022739,4]
[365881695,1749967845329,-557.43,0.00022739,4]
[365881697,1749967845338,-2312.95,0.00022739,4]
[365881699,1749967845347,-2993.06,0.00022739,4]
[365881701,1749967845356,-2616.14,0.00022739,4]
[365881703,1749967845365,-460.0,0.00022739,4]
[365881705,1749967845375,-2896.13,0.00022739,4]
[365881707,1749967845384,-844.45,0.00022739,4]
[365881709,1749967845393,-958.68,0.00022739,4]
[365881711,1749967845402,-698.5,0.00022739,4]
[365881713,1749967845412,-460.0,0.00022739,4]
[365881715,1749967845421,-255.03019116,0.00022739,4]
[365881717,1749967845431,-460.0,0.00022739,4]
[365881719,1749967845440,-352.89729008,0.00022739,4]
[365881721,1749967845449,-460.0,0.00022739,4]
[365881722,1749967845459,-509.0,0.00022739,4]
[365881724,1749967845469,-1316.14,0.00022739,4]
[365881726,1749967845478,-460.0,0.00022739,4]
[365881728,1749967845488,-460.0,0.00022739,4]
[365881731,1749967845498,-1303.76,0.00022739,4]
[365881733,1749967845509,-460.0,0.00022739,4]
[365881735,1749967845519,-460.0,0.00022739,4]
[365881737,1749967845529,-460.0,0.00022739,4]
[365881739,1749967845538,-270.0,0.00022739,4]
[365881741,1749967845547,-460.0,0.00022739,4]
[365881743,1749967845558,-460.0,0.00022739,4]
[365881745,1749967845567,-2016.39,0.00022739,4]
[365881747,1749967845577,-1405.32,0.00022739,4]
[365881749,1749967845586,-637.15,0.00022739,4]
[365881751,1749967845595,-460.0,0.00022739,4]
[365881753,1749967845605,-460.0,0.00022739,4]
[365881755,1749967845614,-841.45,0.00022739,4]
[365881757,1749967845623,-460.0,0.00022739,4]
[365881759,1749967845632,-460.0,0.00022739,4]
[365881761,1749967845642,-896.02,0.00022739,4]
[365881763,1749967845651,-1579.85,0.00022739,4]
[365881765,1749967845661,-1382.83,0.00022739,4]
[365881767,1749967845671,-460.0,0.00022739,4]
[365881769,1749967845680,-460.0,0.00022739,4]
[365881771,1749967845688,-460.0,0.00022739,4]
[365881773,1749967845698,-2173.45,0.00022739,4]
[365881775,1749967845707,-2459.82,0.00022739,4]
[365881777,1749967845716,-505.66,0.00022739,4]
[365881778,1749967845725,-460.0,0.00022739,4]
[365881780,1749967845734,-250.0,0.00022739,4]
[365881782,1749967845743,-460.0,0.00022739,4]
[365881784,1749967845752,-552.64,0.00022739,4]
[365881786,1749967845762,-498.96,0.00022739,4]
[365881788,1749967845771,-500.0,0.0002275,2]
[365881790,1749967845780,-501.8180993,0.0002275,2]
[365881792,1749967845790,-500.0,0.0002275,2]
[365881794,1749967845799,-500.0,0.0002275,2]
[365881796,1749967845808,-500.0,0.0002275,2]
[365881798,1749967845817,-500.0,0.0002275,2]
[365881800,1749967845826,-500.0,0.0002275,2]
[365881802,1749967845835,-500.0,0.0002275,2]
[365881804,1749967845845,-501.1319147,0.0002275,2]
[365881806,1749967845854,-600.0,0.0002275,2]
[365881808,1749967845863,-500.0,0.0002275,2]
[365881809,1749967845873,-501.13444693,0.0002275,2]
[365881811,1749967845882,-500.0,0.0002275,2]
[365881813,1749967845891,-542.18707314,0.0002275,2]
[365881815,1749967845900,-500.0,0.0002275,2]
[365881816,1749967845911,-166.76606743,0.00022848,2]
[365881817,1749967845920,-366.86885903,0.0002285,2]
[365881818,1749967845929,-2121.75760746,0.00022866,8]
[365881819,1749967845939,-502.02931313,0.00022885,2]
[365881820,1749967845948,-252.66161971,0.00022885,2]
[365881821,1749967845958,-561.0,0.00023,7]
[365881822,1749967845967,-2121.75760746,0.00023003,8]
[365881823,1749967845976,-340.0,0.00023013,4]
[365881824,1749967845985,-232.49433046,0.00023013,4]
[365881826,1749967845994,-519.28,0.00023013,4]
[365881828,1749967846004,-565.66,0.00023013,4]
[365881829,1749967846013,-674.67,0.00023013,4]
[365881830,1749967846022,-440.0,0.00023013,4]
[365881831,1749967846032,-509.87,0.00023013,4]
[365881832,1749967846041,-460.0,0.00023013,4]
[365881833,1749967846051,-460.0,0.00023013,2]
[365881834,1749967846060,-1475.14,0.00023013,4]
[365881835,1749967846070,-3182.62,0.00023013,4]
[365881836,1749967846079,-504.56,0.00023013,4]
[365881837,1749967846089,-1222.44,0.00023013,4]
[365881838,1749967846098,-460.0,0.00023013,4]
[365881839,1749967846107,-522.78,0.00023013,4]
[365881840,1749967846117,-460.0,0.00023013,4]
[365881841,1749967846126,-460.0,0.00023013,4]
[365881842,1749967846135,-290.0,0.00023013,4]
[365881843,1749967846144,-557.43,0.00023013,4]
[365881844,1749967846155,-2312.95,0.00023013,4]
[365881845,1749967846165,-2993.06,0.00023013,4]
[365881846,1749967846174,-2616.14,0.00023013,4]
[365881847,1749967846184,-460.0,0.00023013,4]
[365881848,1749967846193,-2896.13,0.00023013,4]
[365881849,1749967846203,-844.45,0.00023013,4]
[365881850,1749967846213,-698.5,0.00023013,4]
[365881851,1749967846222,-958.68,0.00023013,4]
[365881852,1749967846231,-460.0,0.00023013,4]
[365881853,1749967846241,-460.0,0.00023013,4]
[365881854,1749967846251,-460.0,0.00023013,4]
[365881855,1749967846260,-509.0,0.00023013,4]
[365881856,1749967846270,-1316.14,0.00023013,4]
[365881857,1749967846279,-460.0,0.00023013,4]
[365881858,1749967846288,-460.0,0.00023013,4]
[365881859,1749967846297,-460.0,0.00023013,4]
[365881860,1749967846307,-460.0,0.00023013,4]
[365881861,1749967846316,-460.0,0.00023013,4]
[365881862,1749967846326,-460.0,0.00023013,4]
[365881863,1749967846336,-460.0,0.00023013,4]
[365881864,1749967846345,-2016.39,0.00023013,4]
[365881865,1749967846355,-1405.32,0.00023013,4]
[365881866,1749967846364,-637.15,0.00023013,4]
[365881867,1749967846374,-460.0,0.00023013,4]
[365881868,1749967846383,-460.0,0.00023013,4]
[365881869,1749967846392,-841.45,0.00023013,4]
[365881870,1749967846402,-460.0,0.00023013,4]
[365881871,1749967846411,-460.0,0.00023013,4]
[365881872,1749967846421,-896.02,0.00023013,4]
[365881873,1749967846430,-1579.85,0.00023013,4]
[365881874,1749967846440,-1382.83,0.00023013,4]
[365881875,1749967846449,-460.0,0.00023013,4]
[365881876,1749967846459,-460.0,0.00023013,4]
[365881877,1749967846468,-460.0,0.00023013,4]
[365881878,1749967846478,-2173.45,0.00023013,4]
[365881879,1749967846487,-2459.82,0.00023013,4]
[365881880,1749967846497,-505.66,0.00023013,4]
[365881881,1749967846506,-460.0,0.00023013,4]
[365881882,1749967846515,-460.0,0.00023013,4]
[365881883,1749967846524,-552.64,0.00023013,4]
[365881884,1749967846534,-498.96,0.00023013,4]
[365881885,1749967846543,-500.0,0.00023022,2]
[365881886,1749967846553,-500.0,0.00023052,2]
[365881887,1749967846565,-500.0,0.00023054,2]
[365881888,1749967846576,-2121.75760746,0.00023141,8]
[365881890,1749967846585,-194.06246095,0.00023144,2]
[365881892,1749967846594,-500.0,0.00023156,2]
[365881894,1749967846603,-500.0,0.00023191,2]
[365881896,1749967846612,-500.0,0.00023196,2]
[365881898,1749967846622,-500.0,0.00023224,2]
[365881914,1749967846631,-500.0,0.00023233,2]
[365881916,1749967846754,-500.0,0.00023267,2]
[365881918,1749967846764,-1500.0,0.00023268,2]
[365881920,1749967846774,-1003.85528964,0.00023268,2]
[365881922,1749967846783,-2121.75760746,0.00023279,8]
[365881925,1749967846794,-519.28,0.00023287,4]
[365881927,1749967846803,-565.66,0.00023287,4]
[365881929,1749967846813,-674.67,0.00023287,4]
[365881931,1749967846823,-509.87,0.00023287,4]
[365881933,1749967846832,-460.0,0.00023287,2]
[365881935,1749967846841,-1475.14,0.00023287,4]
[365881937,1749967846852,-3182.62,0.00023287,4]
[365881939,1749967846861,-504.56,0.00023287,4]
[365881941,1749967846871,-1222.44,0.00023287,4]
[365881943,1749967846880,-460.0,0.00023287,4]
[365881945,1749967846889,-522.78,0.00023287,4]
[365881947,1749967846899,-460.0,0.00023287,4]
[365881949,1749967846908,-460.0,0.00023287,4]
[365881951,1749967846917,-557.43,0.00023287,4]
[365881953,1749967846926,-2312.95,0.00023287,4]
[365881955,1749967846935,-2993.06,0.00023287,4]
[365881957,1749967846945,-2616.14,0.00023287,4]
[365881959,1749967846954,-460.0,0.00023287,4]
[365881961,1749967846963,-2896.13,0.00023287,4]
[365881963,1749967846973,-844.45,0.00023287,4]
[365881965,1749967846982,-698.5,0.00023287,4]
[365881966,1749967846991,-958.68,0.00023287,4]
[365881967,1749967847000,-460.0,0.00023287,4]
[365881968,1749967847009,-460.0,0.00023287,4]
[365881969,1749967847018,-460.0,0.00023287,4]
[365881970,1749967847027,-509.0,0.00023287,4]
[365881971,1749967847036,-1316.14,0.00023287,4]
[365881972,1749967847045,-460.0,0.00023287,4]
[365881973,1749967847055,-460.0,0.00023287,4]
[365881974,1749967847064,-460.0,0.00023287,4]
[365881975,1749967847074,-460.0,0.00023287,4]
[365881976,1749967847083,-460.0,0.00023287,4]
[365881977,1749967847092,-460.0,0.00023287,4]
[365881978,1749967847101,-460.0,0.00023287,4]
[365881979,1749967847110,-2016.39,0.00023287,4]
[365881980,1749967847119,-1405.32,0.00023287,4]
[365881981,1749967847127,-637.15,0.00023287,4]
[365881982,1749967847137,-460.0,0.00023287,4]
[365881984,1749967847146,-460.0,0.00023287,4]
[365881986,1749967847155,-841.45,0.00023287,4]
[365881988,1749967847164,-460.0,0.00023287,4]
[365881990,1749967847173,-460.0,0.00023287,4]
[365881992,1749967847182,-896.02,0.00023287,4]
[365881994,1749967847191,-1579.85,0.00023287,4]
[365881996,1749967847201,-1382.83,0.00023287,4]
[365881998,1749967847210,-460.0,0.00023287,4]
[365882000,1749967847218,-460.0,0.00023287,4]
[365882002,1749967847227,-460.0,0.00023287,4]
[365882004,1749967847237,-2173.45,0.00023287,4]
[365882006,1749967847246,-2459.82,0.00023287,4]
[365882008,1749967847255,-505.66,0.00023287,4]
[365882010,1749967847264,-460.0,0.00023287,4]
[365882012,1749967847273,-460.0,0.00023287,4]
[365882014,1749967847282,-552.64,0.00023287,4]
[365882016,1749967847291,-498.96,0.00023287,4]
[365882018,1749967847300,-500.0,0.00023294,2]
[365882020,1749967847309,-501.32312854,0.00023298,2]
[365882022,1749967847318,-501.22979174,0.00023298,2]
[365882024,1749967847327,-502.13599302,0.00023298,2]
[365882026,1749967847336,-509.62589891,0.00023298,2]
[365882028,1749967847344,-501.22424022,0.00023298,2]
[365882030,1749967847353,-1000.0,0.00023298,2]
[365882032,1749967847363,-1000.0,0.00023298,2]
[365882034,1749967847372,-301.33803323,0.00023298,2]
[365882036,1749967847381,-1200.0,0.00023298,2]
[365882038,1749967847390,-1001.2673906,0.00023298,2]
[365882040,1749967847399,-894.24716771,0.00023298,2]
[365882042,1749967847408,-1375.777657,0.00023324,3]
[365882044,1749967847418,-366.86885903,0.00023325,2]
[365882046,1749967847427,-964.0,0.00023389,2]
[365882048,1749967847436,-2160.0,0.00023389,2]
[365882050,1749967847445,-653.0,0.00023389,2]
[365882052,1749967847454,-3000.0,0.000234,2]
[365882054,1749967847463,-3000.0,0.0002341,2]
[365882056,1749967847473,-2121.75760746,0.00023417,9]
[365882058,1749967847482,-500.0,0.00023418,2]
[365882060,1749967847492,-3000.0,0.0002342,2]
[365882062,1749967847501,-3000.0,0.0002343,2]
[365882064,1749967847510,-500.0,0.00023431,2]
[365882066,1749967847520,-500.0,0.00023434,2]
[365882068,1749967847529,-3000.0,0.0002344,2]
[365882070,1749967847539,-3000.0,0.0002345,2]
[365882072,1749967847548,-3000.0,0.0002346,2]
[365882074,1749967847557,-500.0,0.00023468,2]
[365882076,1749967847566,-3000.0,0.0002347,2]
[365882078,1749967847575,-727.20082703,0.00023478,2]
[365882080,1749967847586,-3000.0,0.0002348,2]
[365882082,1749967847595,-215.0738,0.00023485,2]
[365882084,1749967847605,-3000.0,0.0002349,2]
[365882086,1749967847614,-500.0,0.00023491,2]
[365882088,1749967847623,-1374.82,0.000235,7]
[365882090,1749967847632,-570.14,0.000235,7]
[365882092,1749967847641,-3000.0,0.000235,2]
[365882094,1749967847650,-2005.31,0.000235,3]
[365882096,1749967847660,-2875.54510429,0.00023501,2]
[365882098,1749967847669,-3000.0,0.0002351,2]
[365882100,1749967847679,-3000.0,0.0002352,2]
[365882102,1749967847687,-3000.0,0.0002353,2]
[365882104,1749967847697,-3000.0,0.0002354,2]
[365882106,1749967847706,-3000.0,0.0002355,2]
[365882108,1749967847715,-2121.75760746,0.00023555,9]
[365882110,1749967847725,-5597.461033,0.0002356,2]
[365882112,1749967847733,-519.28,0.00023561,4]
[365882114,1749967847743,-565.66,0.00023561,4]
[365882116,1749967847752,-674.67,0.00023561,4]
[365882118,1749967847761,-200.0,0.00023561,4]
[365882120,1749967847770,-200.0,0.00023561,4]
[365882122,1749967847779,-201.51201012,0.00023561,4]
[365882124,1749967847788,-509.87,0.00023561,4]
[365882126,1749967847797,-460.0,0.00023561,2]
[365882128,1749967847807,-1475.14,0.00023561,4]
[365882130,1749967847815,-3182.62,0.00023561,4]
[365882132,1749967847824,-504.56,0.00023561,4]
[365882134,1749967847833,-1222.44,0.00023561,4]
[365882136,1749967847843,-460.0,0.00023561,4]
[365882138,1749967847851,-522.78,0.00023561,4]
[365882140,1749967847860,-460.0,0.00023561,4]
[365882142,1749967847870,-557.43,0.00023561,4]
[365882144,1749967847879,-2312.95,0.00023561,4]
[365882146,1749967847888,-2993.06,0.00023561,4]
[365882148,1749967847897,-2616.14,0.00023561,4]
[365882150,1749967847906,-460.0,0.00023561,4]
[365882152,1749967847915,-2896.13,0.00023561,4]
[365882154,1749967847924,-151.0,0.00023561,7]
[365882156,1749967847933,-844.45,0.00023561,4]
[365882158,1749967847942,-698.5,0.00023561,4]
[365882160,1749967847951,-958.68,0.00023561,4]
[365882162,1749967847960,-460.0,0.00023561,4]
[365882164,1749967847969,-460.0,0.00023561,4]
[365882166,1749967847978,-151.0,0.00023561,7]
[365882168,1749967847987,-151.0,0.00023561,7]
[365882170,1749967847996,-460.0,0.00023561,4]
[365882172,1749967848005,-509.0,0.00023561,4]
[365882174,1749967848014,-1316.14,0.00023561,4]
[365882176,1749967848024,-151.0,0.00023561,7]
[365882178,1749967848033,-151.0,0.00023561,7]
[365882180,1749967848042,-460.0,0.00023561,4]
[365882182,1749967848051,-460.0,0.00023561,4]
[365882184,1749967848060,-460.0,0.00023561,4]
[365882186,1749967848069,-460.0,0.00023561,4]
[365882188,1749967848079,-460.0,0.00023561,4]
[365882190,1749967848088,-151.0,0.00023561,7]
[365882192,1749967848098,-460.0,0.00023561,4]
[365882194,1749967848107,-460.0,0.00023561,4]
[365882195,1749967848116,-2016.39,0.00023561,4]
[365882197,1749967848125,-151.0,0.00023561,7]
[365882199,1749967848135,-637.15,0.00023561,4]
[365882201,1749967848144,-460.0,0.00023561,4]
[365882203,1749967848154,-1405.32,0.00023561,4]
[365882205,1749967848165,-460.0,0.00023561,4]
[365882207,1749967848175,-841.45,0.00023561,4]
[365882209,1749967848184,-191.16713,0.00023561,7]
[365882211,1749967848194,-441.44472345,0.00023561,4]
[365882213,1749967848203,-191.16713,0.00023561,7]
[365882215,1749967848212,-460.0,0.00023561,4]
[365882217,1749967848222,-896.02,0.00023561,4]
[365882219,1749967848232,-1579.85,0.00023561,4]
[365882221,1749967848242,-1382.83,0.00023561,4]
[365882224,1749967848254,-596.91600831,0.00023561,4]
[365882225,1749967848263,-460.0,0.00023561,4]
[365882227,1749967848272,-460.0,0.00023561,4]
[365882229,1749967848281,-2173.45,0.00023561,4]
[365882231,1749967848291,-2459.82,0.00023561,4]
[365882234,1749967848300,-505.66,0.00023561,4]
[365882235,1749967848309,-460.0,0.00023561,4]
[365882238,1749967848320,-557.79809403,0.00023561,4]
[365882239,1749967848329,-552.64,0.00023561,4]
[365882241,1749967848338,-498.96,0.00023561,4]
[365882243,1749967848348,-500.0,0.00023571,2]
[365882245,1749967848357,-211.06366694,0.00023573,2]
[365882247,1749967848366,-501.65890684,0.00023573,2]
[365882249,1749967848375,-500.0,0.00023573,2]
[365882251,1749967848385,-154.858186,0.00023573,7]
[365882253,1749967848394,-151.0,0.00023573,7]
[365882255,1749967848404,-151.0,0.00023573,7]
[365882257,1749967848413,-151.0,0.00023573,7]
[365882259,1749967848422,-151.0,0.00023573,2]
[365882261,1749967848432,-151.0,0.00023573,2]
[365882263,1749967848441,-151.0,0.00023573,7]
[365882265,1749967848450,-151.0,0.00023573,7]
[365882267,1749967848460,-151.0,0.00023573,7]
[365882269,1749967848469,-329.0,0.00023578,2]
[365882271,1749967848479,-244.10651232,0.00023588,3]
[365882273,1749967848488,-58340.64215431,0.000236,7]
[365882293,1749967848674,-920.0,0.000236,7]
[365882296,1749967848687,-717.88170663,0.000236,7]
[365883404,1749967925286,-460.0,0.00020164,2]
[365883407,1749968267876,3039.91,0.00019,2]
[365883409,1749968315742,170740.59443475,0.00024,120]
[365883412,1749968381926,-40.0,0.00020164,2]
[365883413,1749968381947,-214.0,0.00020348,2]
[365883414,1749968413713,2015.15167686,0.00019,2]
[365883415,1749968413739,747.84832314,0.00019,2]
[365883456,1749968576008,-500.0,0.00020164,2]
[365883457,1749968576028,-4.0,0.00020348,2]
[365883465,1749968772514,207.510161,0.00013699,2]
[365883468,1749968825248,-182.0,0.00020187,2]
[365883469,1749968833126,-25.510161,0.00020187,2]
[365883470,1749968833146,-29.09739501,0.00020348,2]
[365883471,1749968833166,-179.578847,0.00020728,2]
[365883472,1749968833188,-169.785493,0.00020777,2]
[365883473,1749968833210,-168.0,0.00020815,2]
[365883474,1749968833230,-135.97664528,0.0002153,2]
[365883476,1749968835133,-24.02335472,0.0002153,2]
[365883477,1749968835154,-168.0,0.00021633,2]
[365883478,1749968835175,-168.0,0.00021682,2]
[365883479,1749968835196,-2000.16,0.00021764,2]
[365883480,1749968835216,-168.91645926,0.00021817,2]
[365883481,1749968835396,-178.11048031,0.000219,2]
[365883482,1749968835426,-1509.84432922,0.000219,6]
[365883483,1749968835446,-1200.0,0.00021915,2]
[365883484,1749968835466,-300.0,0.00021915,2]
[365883485,1749968835487,-222.79023639,0.00021916,2]
[365883486,1749968835507,-173.234,0.00021916,2]
[365883487,1749968835527,-231.0,0.00021916,2]
[365883488,1749968835549,-300.0,0.00021916,2]
[365883489,1749968835571,-460.0,0.00021917,4]
[365883490,1749968835592,-464.31,0.00021917,4]
[365883491,1749968835613,-460.0,0.00021917,4]
[365883492,1749968835633,-370.0,0.00021917,4]
[365883493,1749968835655,-83.57331523,0.00021917,4]
[365883494,1749968837100,-376.42668477,0.00021917,4]
[365883495,1749968837122,-460.0,0.00021917,4]
[365883496,1749968837143,-460.0,0.00021917,4]
[365883497,1749968837164,-420.0,0.00021917,4]
[365883498,1749968837187,-144.88608658,0.00021917,4]
[365883499,1749968841078,-275.11391342,0.00021917,4]
[365883500,1749968841100,-460.0,0.00021917,4]
[365883501,1749968841121,-113.65560658,0.00021917,4]
[365883502,1749968842083,-346.34439342,0.00021917,4]
[365883503,1749968842105,-403.30543439,0.00021917,4]
[365883579,1749969031945,-500.0,0.00020164,2]
[365883581,1749969031956,-1935.32885144,0.00020827,2]
[365883638,1749969037871,-39.37114856,0.00020827,2]
[365883639,1749969037881,-1045.0263779,0.00021175,2]
[365883640,1749969037891,-300.0,0.00021809,2]
[365883641,1749969037900,-391.0,0.00021809,2]
[365883642,1749969037910,-40330.95894579,0.0002181,2]
[365883643,1749969037919,-1671.69194562,0.000219,6]
[365883644,1749969037929,-153.22285587,0.000219,2]
[365883645,1749969037938,-239.38,0.00021907,10]
[365883646,1749969037948,-668.62496265,0.00021916,2]
[365883647,1749969037958,-668.62496265,0.00021916,2]
[365883648,1749969037967,-668.62496265,0.00021916,2]
[365883649,1749969037977,-668.62496265,0.00021916,2]
[365883650,1749969037987,-668.62496265,0.00021916,2]
[365883651,1749969037996,-668.62496265,0.00021916,2]
[365883652,1749969038006,-668.62496265,0.00021916,2]
[365883653,1749969038016,-668.62496265,0.00021916,2]
[365883654,1749969038026,-668.62496265,0.00021916,2]
[365883655,1749969038036,-668.62496265,0.00021916,2]
[365883656,1749969038045,-668.62496265,0.00021916,2]
[365883657,1749969038055,-668.62496265,0.00021916,2]
[365883658,1749969038064,-668.62496265,0.00021916,2]
[365883659,1749969038073,-668.62496265,0.00021916,2]
[365883660,1749969038084,-460.0,0.00021917,4]
[365883661,1749969038093,-258.12663295,0.00021917,4]
[365883662,1749969038103,-416.05839542,0.00021917,4]
[365883663,1749969038113,-312.86135184,0.00021917,4]
[365883664,1749969038123,-390.0,0.00021917,4]
[365883665,1749969038132,-460.0,0.00021917,4]
[365883666,1749969038142,-413.18652311,0.00021917,4]
[365883667,1749969038151,-419.52261353,0.00021917,4]
[365883668,1749969038161,-154.23736188,0.00021917,4]
[365883669,1749969038171,-460.0,0.00021917,4]
[365883670,1749969038182,-460.0,0.00021917,4]
[365883671,1749969038192,-460.0,0.00021917,4]
[365883672,1749969038202,-370.0,0.00021917,4]
[365883673,1749969038212,-555.23,0.00021917,4]
[365883674,1749969038222,-440.0,0.00021917,4]
[365883675,1749969038232,-420.0,0.00021917,4]
[365883676,1749969038241,-460.0,0.00021917,4]
[365883677,1749969038251,-460.0,0.00021917,4]
[365883678,1749969038260,-460.0,0.00021917,2]
[365883679,1749969038270,-460.0,0.00021917,4]
[365883680,1749969038280,-210.0,0.00021917,4]
[365883681,1749969038289,-460.0,0.00021917,4]
[365883682,1749969038299,-460.0,0.00021917,4]
[365883683,1749969038309,-460.0,0.00021917,4]
[365883684,1749969038318,-460.0,0.00021917,4]
[365883685,1749969038327,-460.0,0.00021917,4]
[365883686,1749969038338,-432.02689205,0.00021917,4]
[365883687,1749969038348,-460.0,0.00021917,4]
[365883688,1749969038357,-460.0,0.00021917,4]
[365883689,1749969038367,-2671.36,0.00021917,4]
[365883690,1749969038376,-460.0,0.00021917,4]
[365883691,1749969038386,-400.0,0.00021917,4]
[365883692,1749969038395,-1112.56,0.00021917,4]
[365883693,1749969038405,-673.95,0.00021917,4]
[365883694,1749969038414,-460.0,0.00021917,4]
[365883695,1749969038424,-1986.45,0.00021917,4]
[365883696,1749969038568,-460.0,0.00021917,4]
[365883697,1749969038577,-2376.43,0.00021917,4]
[365883698,1749969038588,-378.49876478,0.00021917,4]
[365883699,1749969038597,-2237.09,0.00021917,4]
[365883700,1749969038606,-1004.5,0.00021917,4]
[365883701,1749969038615,-460.0,0.00021917,4]
[365883702,1749969038625,-572.14,0.00021917,4]
[365883703,1749969038634,-460.0,0.00021917,4]
[365883704,1749969038643,-460.0,0.00021917,4]
[365883705,1749969038653,-460.0,0.00021917,4]
[365883706,1749969038662,-460.0,0.00021917,4]
[365883707,1749969038672,-903.47,0.00021917,4]
[365883708,1749969038681,-549.75596082,0.00021917,4]
[365883709,1749969038691,-1135.81,0.00021917,4]
[365883710,1749969038907,-460.0,0.00021917,4]
[365883711,1749969038917,-460.0,0.00021917,4]
[365883712,1749969038927,-460.0,0.00021917,4]
[365883713,1749969038936,-460.0,0.00021917,4]
[365883714,1749969038946,-805.14,0.00021917,4]
[365883715,1749969038957,-460.0,0.00021917,4]
[365883716,1749969038966,-460.0,0.00021917,4]
[365883717,1749969038976,-460.0,0.00021917,4]
[365883718,1749969038985,-460.0,0.00021917,4]
[365883719,1749969038995,-460.0,0.00021917,4]
[365883720,1749969039004,-532.72453924,0.00021917,4]
[365883721,1749969039014,-460.0,0.00021917,4]
[365883722,1749969039023,-475.43,0.00021917,4]
[365883723,1749969039033,-460.0,0.00021917,4]
[365883724,1749969039043,-1912.57,0.00021917,4]
[365883725,1749969039052,-460.0,0.00021917,4]
[365883726,1749969039062,-460.0,0.00021917,4]
[365883727,1749969039071,-460.0,0.00021917,4]
[365883728,1749969039081,-629.05,0.00021917,4]
[365883729,1749969039091,-460.0,0.00021917,4]
[365883730,1749969039100,-460.0,0.00021917,4]
[365883731,1749969039109,-460.0,0.00021917,4]
[365883732,1749969039119,-436.50323665,0.00021917,4]
[365883733,1749969039128,-460.0,0.00021917,4]
[365883734,1749969039139,-1547.26,0.00021917,4]
[365883735,1749969039149,-1466.39,0.00021917,4]
[365883736,1749969039158,-460.0,0.00021917,4]
[365883737,1749969039168,-460.0,0.00021917,4]
[365883738,1749969039178,-406.09013989,0.00021917,4]
[365883739,1749969039187,-460.0,0.00021917,4]
[365883740,1749969039197,-460.0,0.00021917,4]
[365883741,1749969039206,-811.66,0.00021917,4]
[365883742,1749969039215,-532.55,0.00021917,4]
[365883743,1749969039225,-2205.0,0.00021917,4]
[365883744,1749969039234,-460.0,0.00021917,4]
[365883745,1749969039244,-460.0,0.00021917,4]
[365883746,1749969039253,-1330.03,0.00021917,4]